[Event "Titled Tuesday Blitz May 2 Early 2023"]
[White "Zaitsev, Alexander"]
[Black "Levitan, Caleb Levi"]
[WhiteFideId "4164490"]
[BlackFideId "14332620"]
[WhiteElo "2373"]
[BlackElo "1963"]
[Result "1-0"]
[Round "10"]
[TimeControl "180+2"]
[Date "2023.05.03"]
[WhiteClock "0:00:00"]
[BlackClock "0:00:00"]

1. e4 {[%clk 0:00:01]}  c5 {[%clk 0:00:01]} 2. Nf3 {[%clk 0:00:01]}  e6 {[%clk 0:00:01]} 3. g3 {[%clk 0:00:01]}  d5 {[%clk 0:00:01]} 4. exd5 {[%clk 0:00:01]}  exd5 {[%clk 0:00:01]} 5. d4 {[%clk 0:00:01]}  cxd4 {[%clk 0:00:01]} 6. Bg2 {[%clk 0:00:01]}  Nc6 {[%clk 0:00:01]} 7. O-O {[%clk 0:00:01]}  Nf6 {[%clk 0:00:01]} 8. Nxd4 {[%clk 0:00:01]}  Be7 {[%clk 0:00:01]} 9. Nc3 {[%clk 0:00:01]}  O-O {[%clk 0:00:01]} 10. h3 {[%clk 0:00:01]}  h6 {[%clk 0:00:01]} 11. Be3 {[%clk 0:00:01]}  a6 {[%clk 0:00:01]} 12. Re1 {[%clk 0:00:01]}  Qc7 {[%clk 0:00:01]} 13. a3 {[%clk 0:00:01]}  Rd8 {[%clk 0:00:00]} 14. Qd2 {[%clk 0:00:01]}  Bf8 {[%clk 0:00:00]} 15. Rad1 {[%clk 0:00:01]}  Bd7 {[%clk 0:00:00]} 16. Bf4 {[%clk 0:00:01]}  Qb6 {[%clk 0:00:00]} 17. Nb3 {[%clk 0:00:01]}  Be6 {[%clk 0:00:00]} 18. Na4 {[%clk 0:00:00]}  Qb5 {[%clk 0:00:00]} 19. Nc3 {[%clk 0:00:00]}  Qb6 {[%clk 0:00:00]} 20. Be3 {[%clk 0:00:00]}  Qc7 {[%clk 0:00:00]} 21. Na4 {[%clk 0:00:00]}  Ne5 {[%clk 0:00:00]} 22. Bb6 {[%clk 0:00:00]}  Qd7 {[%clk 0:00:00]} 23. Rxe5 {[%clk 0:00:00]}  Qxa4 {[%clk 0:00:00]} 24. Bxd8 {[%clk 0:00:00]}  Rxd8 {[%clk 0:00:00]} 25. Nd4 {[%clk 0:00:00]}  Bd6 {[%clk 0:00:00]} 26. Nxe6 {[%clk 0:00:00]}  fxe6 {[%clk 0:00:00]} 27. Rxe6 {[%clk 0:00:00]}  Qd7 {[%clk 0:00:00]} 28. Bxd5 {[%clk 0:00:00]}  Kh8 {[%clk 0:00:00]} 29. Bb3 {[%clk 0:00:00]}  Ne8 {[%clk 0:00:00]} 30. Rde1 {[%clk 0:00:00]}  Nc7 {[%clk 0:00:00]} 31. Rxh6+ {[%clk 0:00:00]}  gxh6 {[%clk 0:00:00]} 32. Qxh6+ {[%clk 0:00:00]}  Qh7 {[%clk 0:00:00]} 33. Qf6+ {[%clk 0:00:00]}  Qg7 {[%clk 0:00:00]} 34. Qxd8+ {[%clk 0:00:00]}  Bf8 {[%clk 0:00:00]} 35. Qh4+ {[%clk 0:00:00]} 1-0


[Site "https://www.chess.com"]

[Event "Titled Tuesday Blitz May 2 Early 2023"]
[White "Andrews, Todd"]
[Black "Delorme, Alban"]
[WhiteFideId "2012456"]
[BlackFideId "623636"]
[WhiteElo "2217"]
[BlackElo "2196"]
[Result "1-0"]
[Round "10"]
[TimeControl "180+2"]
[Date "2023.05.03"]
[WhiteClock "0:00:00"]
[BlackClock "0:00:00"]

1. e4 {[%clk 0:00:01]}  c5 {[%clk 0:00:01]} 2. Nf3 {[%clk 0:00:01]}  d6 {[%clk 0:00:01]} 3. d4 {[%clk 0:00:01]}  cxd4 {[%clk 0:00:01]} 4. Nxd4 {[%clk 0:00:01]}  Nf6 {[%clk 0:00:01]} 5. Nc3 {[%clk 0:00:01]}  a6 {[%clk 0:00:01]} 6. Bc4 {[%clk 0:00:01]}  e6 {[%clk 0:00:01]} 7. Bb3 {[%clk 0:00:01]}  Be7 {[%clk 0:00:01]} 8. Be3 {[%clk 0:00:01]}  O-O {[%clk 0:00:01]} 9. Qe2 {[%clk 0:00:01]}  Nbd7 {[%clk 0:00:01]} 10. g4 {[%clk 0:00:01]}  Nc5 {[%clk 0:00:01]} 11. f3 {[%clk 0:00:01]}  Qc7 {[%clk 0:00:01]} 12. g5 {[%clk 0:00:01]}  Nfd7 {[%clk 0:00:01]} 13. O-O-O {[%clk 0:00:01]}  g6 {[%clk 0:00:01]} 14. h4 {[%clk 0:00:01]}  e5 {[%clk 0:00:01]} 15. Nd5 {[%clk 0:00:01]}  Qd8 {[%clk 0:00:01]} 16. h5 {[%clk 0:00:01]}  exd4 {[%clk 0:00:01]} 17. Bxd4 {[%clk 0:00:01]}  Ne5 {[%clk 0:00:01]} 18. hxg6 {[%clk 0:00:01]}  hxg6 {[%clk 0:00:01]} 19. Qh2 {[%clk 0:00:01]}  Bxg5+ {[%clk 0:00:01]} 20. Kb1 {[%clk 0:00:01]}  Bh4 {[%clk 0:00:01]} 21. Bxc5 {[%clk 0:00:01]}  dxc5 {[%clk 0:00:01]} 22. Nb6 {[%clk 0:00:00]}  Nxf3 {[%clk 0:00:01]} 23. Rxd8 {[%clk 0:00:00]}  Nxh2 {[%clk 0:00:01]} 24. Rxf8+ {[%clk 0:00:00]}  Kxf8 {[%clk 0:00:01]} 25. Rxh2 {[%clk 0:00:00]}  Rb8 {[%clk 0:00:00]} 26. Rxh4 {[%clk 0:00:00]}  Kg7 {[%clk 0:00:00]} 27. Nxc8 {[%clk 0:00:00]}  Rxc8 {[%clk 0:00:00]} 28. Bd5 {[%clk 0:00:00]}  Rd8 {[%clk 0:00:00]} 29. c4 {[%clk 0:00:00]}  b5 {[%clk 0:00:00]} 30. Rf4 {[%clk 0:00:00]}  Rd7 {[%clk 0:00:00]} 31. b3 {[%clk 0:00:00]}  bxc4 {[%clk 0:00:00]} 32. Bxc4 {[%clk 0:00:00]}  g5 {[%clk 0:00:00]} 33. Rf5 {[%clk 0:00:00]}  f6 {[%clk 0:00:00]} 34. Rxc5 {[%clk 0:00:00]}  g4 {[%clk 0:00:00]} 35. Rc8 {[%clk 0:00:00]}  Kh6 {[%clk 0:00:00]} 36. Rg8 {[%clk 0:00:00]}  Kh5 {[%clk 0:00:00]} 37. Be2 {[%clk 0:00:00]}  f5 {[%clk 0:00:00]} 38. exf5 {[%clk 0:00:00]}  Rd4 {[%clk 0:00:00]} 39. Rxg4 {[%clk 0:00:00]}  Rd2 {[%clk 0:00:00]} 40. Rg2+ {[%clk 0:00:00]}  Kh6 {[%clk 0:00:00]} 41. f6 {[%clk 0:00:00]}  Rd4 {[%clk 0:00:00]} 42. Rf2 {[%clk 0:00:00]}  Rd8 {[%clk 0:00:00]} 43. f7 {[%clk 0:00:00]}  Rf8 {[%clk 0:00:00]} 44. Bc4 {[%clk 0:00:00]}  Kg7 {[%clk 0:00:00]} 45. Kc2 {[%clk 0:00:00]}  Rxf7 {[%clk 0:00:00]} 46. Rxf7+ {[%clk 0:00:00]} 1-0


[Site "https://www.chess.com"]

[Event "Titled Tuesday Blitz May 2 Early 2023"]
[White "Prudnykova, Olga"]
[Black "Veiga, Jose Francisco R P Neves"]
[WhiteFideId "14121093"]
[BlackFideId "1930087"]
[WhiteElo "2113"]
[BlackElo "2320"]
[Result "0-1"]
[Round "10"]
[TimeControl "180+2"]
[Date "2023.05.03"]
[WhiteClock "0:00:00"]
[BlackClock "0:00:01"]

1. e4 {[%clk 0:00:01]}  Nc6 {[%clk 0:00:01]} 2. d4 {[%clk 0:00:01]}  d5 {[%clk 0:00:01]} 3. e5 {[%clk 0:00:01]}  Bf5 {[%clk 0:00:01]} 4. Nf3 {[%clk 0:00:01]}  e6 {[%clk 0:00:01]} 5. c4 {[%clk 0:00:01]}  dxc4 {[%clk 0:00:01]} 6. Bxc4 {[%clk 0:00:01]}  Bb4+ {[%clk 0:00:01]} 7. Nc3 {[%clk 0:00:01]}  Nge7 {[%clk 0:00:01]} 8. O-O {[%clk 0:00:01]}  O-O {[%clk 0:00:01]} 9. h3 {[%clk 0:00:01]}  Nd5 {[%clk 0:00:01]} 10. Nxd5 {[%clk 0:00:01]}  exd5 {[%clk 0:00:01]} 11. Bd3 {[%clk 0:00:01]}  Qd7 {[%clk 0:00:01]} 12. a3 {[%clk 0:00:01]}  Ba5 {[%clk 0:00:01]} 13. Be3 {[%clk 0:00:01]}  Ne7 {[%clk 0:00:01]} 14. Rc1 {[%clk 0:00:01]}  c6 {[%clk 0:00:01]} 15. Be2 {[%clk 0:00:01]}  Bb6 {[%clk 0:00:01]} 16. Nh4 {[%clk 0:00:01]}  Be6 {[%clk 0:00:01]} 17. g4 {[%clk 0:00:01]}  f6 {[%clk 0:00:01]} 18. exf6 {[%clk 0:00:00]}  Rxf6 {[%clk 0:00:01]} 19. Nf3 {[%clk 0:00:00]}  Ng6 {[%clk 0:00:01]} 20. Bd3 {[%clk 0:00:00]}  Raf8 {[%clk 0:00:01]} 21. Ng5 {[%clk 0:00:00]}  Bc7 {[%clk 0:00:01]} 22. Nxe6 {[%clk 0:00:00]}  Qxe6 {[%clk 0:00:01]} 23. Bxg6 {[%clk 0:00:00]}  hxg6 {[%clk 0:00:01]} 24. Qd2 {[%clk 0:00:00]}  Rf3 {[%clk 0:00:01]} 25. Kg2 {[%clk 0:00:00]}  Qe4 {[%clk 0:00:01]} 0-1


[Site "https://www.chess.com"]

[Event "Titled Tuesday Blitz May 2 Early 2023"]
[White "Allahverdiyeva, Ayan"]
[Black "Kukula, Pawel"]
[WhiteFideId "13412590"]
[BlackFideId "1115081"]
[WhiteElo "1980"]
[BlackElo "2012"]
[Result "0-1"]
[Round "10"]
[TimeControl "180+2"]
[Date "2023.05.03"]
[WhiteClock "0:00:00"]
[BlackClock "0:00:00"]

1. e4 {[%clk 0:00:01]}  c5 {[%clk 0:00:01]} 2. Nf3 {[%clk 0:00:01]}  Nc6 {[%clk 0:00:01]} 3. Bb5 {[%clk 0:00:01]}  e6 {[%clk 0:00:01]} 4. O-O {[%clk 0:00:01]}  Nge7 {[%clk 0:00:01]} 5. d4 {[%clk 0:00:01]}  cxd4 {[%clk 0:00:01]} 6. Nxd4 {[%clk 0:00:01]}  Qb6 {[%clk 0:00:01]} 7. Nxc6 {[%clk 0:00:01]}  bxc6 {[%clk 0:00:01]} 8. Bd3 {[%clk 0:00:01]}  Ng6 {[%clk 0:00:01]} 9. Kh1 {[%clk 0:00:01]}  e5 {[%clk 0:00:01]} 10. Qh5 {[%clk 0:00:01]}  d6 {[%clk 0:00:01]} 11. Na3 {[%clk 0:00:01]}  Be6 {[%clk 0:00:01]} 12. Nc4 {[%clk 0:00:00]}  Qc7 {[%clk 0:00:01]} 13. f4 {[%clk 0:00:00]}  exf4 {[%clk 0:00:01]} 14. Bxf4 {[%clk 0:00:00]}  Nxf4 {[%clk 0:00:01]} 15. Rxf4 {[%clk 0:00:00]}  g6 {[%clk 0:00:01]} 16. Qg5 {[%clk 0:00:00]}  Bg7 {[%clk 0:00:01]} 17. Raf1 {[%clk 0:00:00]}  O-O {[%clk 0:00:01]} 18. Rh4 {[%clk 0:00:00]}  d5 {[%clk 0:00:01]} 19. exd5 {[%clk 0:00:00]}  Bxd5 {[%clk 0:00:01]} 20. Ne3 {[%clk 0:00:00]}  Be6 {[%clk 0:00:00]} 21. Ng4 {[%clk 0:00:00]}  Bxg4 {[%clk 0:00:00]} 22. Rxg4 {[%clk 0:00:00]}  Bxb2 {[%clk 0:00:00]} 23. Bc4 {[%clk 0:00:00]}  Bg7 {[%clk 0:00:00]} 24. Rgf4 {[%clk 0:00:00]}  Kh8 {[%clk 0:00:00]} 25. Bxf7 {[%clk 0:00:00]}  Qd8 {[%clk 0:00:00]} 26. Qg4 {[%clk 0:00:00]}  Rb8 {[%clk 0:00:00]} 27. Qh3 {[%clk 0:00:00]}  Qg5 {[%clk 0:00:00]} 28. R4f3 {[%clk 0:00:00]}  Rbd8 {[%clk 0:00:00]} 29. Bb3 {[%clk 0:00:00]}  Rxf3 {[%clk 0:00:00]} 30. Qxf3 {[%clk 0:00:00]}  Rf8 {[%clk 0:00:00]} 31. Qe2 {[%clk 0:00:00]}  Qd8 {[%clk 0:00:00]} 32. Bf7 {[%clk 0:00:00]}  c5 {[%clk 0:00:00]} 33. Qc4 {[%clk 0:00:00]}  Qg5 {[%clk 0:00:00]} 34. g3 {[%clk 0:00:00]}  Qe7 {[%clk 0:00:00]} 35. Qd5 {[%clk 0:00:00]}  Bd4 {[%clk 0:00:00]} 36. Kg2 {[%clk 0:00:00]}  Kg7 {[%clk 0:00:00]} 37. c4 {[%clk 0:00:00]}  Rxf7 {[%clk 0:00:00]} 38. Rxf7+ {[%clk 0:00:00]}  Qxf7 {[%clk 0:00:00]} 39. Qxf7+ {[%clk 0:00:00]}  Kxf7 {[%clk 0:00:00]} 40. Kf3 {[%clk 0:00:00]}  Kf6 {[%clk 0:00:00]} 41. Ke4 {[%clk 0:00:00]}  Ke6 {[%clk 0:00:00]} 42. h3 {[%clk 0:00:00]}  a5 {[%clk 0:00:00]} 43. a4 {[%clk 0:00:00]}  h6 {[%clk 0:00:00]} 44. g4 {[%clk 0:00:00]}  g5 {[%clk 0:00:00]} 45. Kf3 {[%clk 0:00:00]}  Ke5 {[%clk 0:00:00]} 46. Ke2 {[%clk 0:00:00]}  Bc3 {[%clk 0:00:00]} 47. Kd3 {[%clk 0:00:00]}  Bb4 {[%clk 0:00:00]} 48. Ke3 {[%clk 0:00:00]}  Bc3 {[%clk 0:00:00]} 49. Kd3 {[%clk 0:00:00]}  Be1 {[%clk 0:00:00]} 50. Ke2 {[%clk 0:00:00]}  Bh4 {[%clk 0:00:00]} 0-1


[Site "https://www.chess.com"]

[Event "Titled Tuesday Blitz May 2 Early 2023"]
[White "Clawitter, Craig"]
[Black "Melikhov, Evgeny V."]
[WhiteFideId "2023105"]
[BlackFideId "4122046"]
[WhiteElo "2050"]
[BlackElo "2158"]
[Result "1-0"]
[Round "10"]
[TimeControl "180+2"]
[Date "2023.05.03"]
[WhiteClock "0:00:00"]
[BlackClock "0:00:00"]

1. e4 {[%clk 0:00:01]}  c5 {[%clk 0:00:01]} 2. Nf3 {[%clk 0:00:01]}  d6 {[%clk 0:00:01]} 3. d4 {[%clk 0:00:01]}  cxd4 {[%clk 0:00:01]} 4. Nxd4 {[%clk 0:00:01]}  Nf6 {[%clk 0:00:01]} 5. Nc3 {[%clk 0:00:01]}  a6 {[%clk 0:00:01]} 6. Be3 {[%clk 0:00:01]}  e5 {[%clk 0:00:01]} 7. Nb3 {[%clk 0:00:01]}  Be6 {[%clk 0:00:01]} 8. f3 {[%clk 0:00:01]}  Be7 {[%clk 0:00:01]} 9. Qd2 {[%clk 0:00:01]}  O-O {[%clk 0:00:01]} 10. g4 {[%clk 0:00:01]}  Nbd7 {[%clk 0:00:01]} 11. O-O-O {[%clk 0:00:01]}  b5 {[%clk 0:00:01]} 12. Rg1 {[%clk 0:00:01]}  Nb6 {[%clk 0:00:01]} 13. Na5 {[%clk 0:00:01]}  Nc4 {[%clk 0:00:01]} 14. Bxc4 {[%clk 0:00:01]}  bxc4 {[%clk 0:00:01]} 15. Nc6 {[%clk 0:00:01]}  Qc7 {[%clk 0:00:01]} 16. Nxe7+ {[%clk 0:00:01]}  Qxe7 {[%clk 0:00:01]} 17. Qxd6 {[%clk 0:00:01]}  Qb7 {[%clk 0:00:01]} 18. Qxe5 {[%clk 0:00:01]}  Rab8 {[%clk 0:00:01]} 19. Nd5 {[%clk 0:00:01]}  Nxd5 {[%clk 0:00:01]} 20. exd5 {[%clk 0:00:01]}  c3 {[%clk 0:00:01]} 21. Qxc3 {[%clk 0:00:01]}  Rfc8 {[%clk 0:00:01]} 22. Qe5 {[%clk 0:00:01]}  Bd7 {[%clk 0:00:01]} 23. Bd4 {[%clk 0:00:00]}  f6 {[%clk 0:00:01]} 24. Qh5 {[%clk 0:00:00]}  Ba4 {[%clk 0:00:00]} 25. Rg2 {[%clk 0:00:00]}  Qb4 {[%clk 0:00:00]} 26. g5 {[%clk 0:00:00]}  Bxc2 {[%clk 0:00:00]} 27. Rxc2 {[%clk 0:00:00]}  Rxc2+ {[%clk 0:00:00]} 28. Kxc2 {[%clk 0:00:00]}  Qa4+ {[%clk 0:00:00]} 29. Kc1 {[%clk 0:00:00]}  Qxa2 {[%clk 0:00:00]} 30. gxf6 {[%clk 0:00:00]}  Qa1+ {[%clk 0:00:00]} 31. Kd2 {[%clk 0:00:00]}  Qa5+ {[%clk 0:00:00]} 32. Ke3 {[%clk 0:00:00]}  g6 {[%clk 0:00:00]} 33. Qe5 {[%clk 0:00:00]}  Qb5 {[%clk 0:00:00]} 34. f7+ {[%clk 0:00:00]}  Kxf7 {[%clk 0:00:00]} 35. Qe6+ {[%clk 0:00:00]}  Kf8 {[%clk 0:00:00]} 36. Qf6+ {[%clk 0:00:00]}  Ke8 {[%clk 0:00:00]} 37. Re1 {[%clk 0:00:00]}  Kd7 {[%clk 0:00:00]} 38. Qe6+ {[%clk 0:00:00]}  Kc7 {[%clk 0:00:00]} 39. Be5+ {[%clk 0:00:00]}  Kb7 {[%clk 0:00:00]} 40. Bxb8 {[%clk 0:00:00]}  Kxb8 {[%clk 0:00:00]} 41. Qd6+ {[%clk 0:00:00]}  Kb7 {[%clk 0:00:00]} 42. Qc6+ {[%clk 0:00:00]}  Qxc6 {[%clk 0:00:00]} 43. dxc6+ {[%clk 0:00:00]} 1-0


[Site "https://www.chess.com"]

[Event "Titled Tuesday Blitz May 2 Early 2023"]
[White "Toktomushev, Teimur"]
[Black "Cramling Bellon, Anna"]
[WhiteFideId "14176726"]
[BlackFideId "32009232"]
[WhiteElo "2116"]
[BlackElo "1972"]
[Result "1-0"]
[Round "10"]
[TimeControl "180+2"]
[Date "2023.05.03"]
[WhiteClock "0:00:00"]
[BlackClock "0:00:00"]

1. d4 {[%clk 0:00:01]}  Nf6 {[%clk 0:00:01]} 2. c4 {[%clk 0:00:01]}  e6 {[%clk 0:00:01]} 3. Nf3 {[%clk 0:00:01]}  d5 {[%clk 0:00:01]} 4. Nc3 {[%clk 0:00:01]}  c6 {[%clk 0:00:01]} 5. e3 {[%clk 0:00:01]}  Be7 {[%clk 0:00:01]} 6. Bd3 {[%clk 0:00:01]}  dxc4 {[%clk 0:00:01]} 7. Bxc4 {[%clk 0:00:01]}  Nbd7 {[%clk 0:00:01]} 8. O-O {[%clk 0:00:01]}  O-O {[%clk 0:00:01]} 9. e4 {[%clk 0:00:01]}  b5 {[%clk 0:00:01]} 10. Bd3 {[%clk 0:00:01]}  Bb7 {[%clk 0:00:01]} 11. e5 {[%clk 0:00:01]}  Nd5 {[%clk 0:00:01]} 12. Nxd5 {[%clk 0:00:01]}  exd5 {[%clk 0:00:01]} 13. Qe2 {[%clk 0:00:01]}  Re8 {[%clk 0:00:01]} 14. e6 {[%clk 0:00:00]}  Bf6 {[%clk 0:00:00]} 15. exf7+ {[%clk 0:00:00]}  Kxf7 {[%clk 0:00:00]} 16. Ng5+ {[%clk 0:00:00]}  Bxg5 {[%clk 0:00:00]} 17. Qh5+ {[%clk 0:00:00]}  Kf8 {[%clk 0:00:00]} 18. Bxg5 {[%clk 0:00:00]}  Nf6 {[%clk 0:00:00]} 19. Bxf6 {[%clk 0:00:00]}  Qxf6 {[%clk 0:00:00]} 20. Qxh7 {[%clk 0:00:00]}  Rad8 {[%clk 0:00:00]} 21. Rae1 {[%clk 0:00:00]}  Rxe1 {[%clk 0:00:00]} 22. Rxe1 {[%clk 0:00:00]}  Qf7 {[%clk 0:00:00]} 23. Bg6 {[%clk 0:00:00]}  Qg8 {[%clk 0:00:00]} 24. Qh4 {[%clk 0:00:00]} 1-0


[Site "https://www.chess.com"]

[Event "Titled Tuesday Blitz May 2 Early 2023"]
[White "Kostiukov, Alexandr"]
[Black "Lopez, Henry"]
[WhiteFideId "14108100"]
[BlackFideId "5203830"]
[WhiteElo "2202"]
[BlackElo "2177"]
[Result "0-1"]
[Round "10"]
[TimeControl "180+2"]
[Date "2023.05.03"]
[WhiteClock "0:00:00"]
[BlackClock "0:00:00"]

1. g3 {[%clk 0:00:01]}  c5 {[%clk 0:00:01]} 2. Bg2 {[%clk 0:00:01]}  Nc6 {[%clk 0:00:01]} 3. c4 {[%clk 0:00:01]}  g6 {[%clk 0:00:01]} 4. Nf3 {[%clk 0:00:01]}  Bg7 {[%clk 0:00:01]} 5. O-O {[%clk 0:00:01]}  e5 {[%clk 0:00:01]} 6. Nc3 {[%clk 0:00:01]}  Nge7 {[%clk 0:00:01]} 7. Ne1 {[%clk 0:00:01]}  d6 {[%clk 0:00:01]} 8. Nc2 {[%clk 0:00:01]}  O-O {[%clk 0:00:01]} 9. Ne3 {[%clk 0:00:01]}  f5 {[%clk 0:00:01]} 10. Ned5 {[%clk 0:00:01]}  f4 {[%clk 0:00:01]} 11. d3 {[%clk 0:00:01]}  g5 {[%clk 0:00:01]} 12. e3 {[%clk 0:00:01]}  Ng6 {[%clk 0:00:01]} 13. Qh5 {[%clk 0:00:01]}  Nb4 {[%clk 0:00:01]} 14. Nxb4 {[%clk 0:00:01]}  cxb4 {[%clk 0:00:01]} 15. Bd5+ {[%clk 0:00:01]}  Kh8 {[%clk 0:00:01]} 16. Ne4 {[%clk 0:00:01]}  Bf6 {[%clk 0:00:01]} 17. Bd2 {[%clk 0:00:00]}  a5 {[%clk 0:00:01]} 18. a3 {[%clk 0:00:00]}  b3 {[%clk 0:00:01]} 19. Bc3 {[%clk 0:00:00]}  Kg7 {[%clk 0:00:01]} 20. gxf4 {[%clk 0:00:00]}  gxf4 {[%clk 0:00:01]} 21. Kh1 {[%clk 0:00:00]}  Be7 {[%clk 0:00:01]} 22. Rg1 {[%clk 0:00:00]}  Rf5 {[%clk 0:00:01]} 23. Qg4 {[%clk 0:00:00]}  Kh6 {[%clk 0:00:00]} 24. Qh3+ {[%clk 0:00:00]}  Rh5 {[%clk 0:00:00]} 25. Qg2 {[%clk 0:00:00]}  Bh3 {[%clk 0:00:00]} 26. Qf3 {[%clk 0:00:00]}  Qd7 {[%clk 0:00:00]} 27. exf4 {[%clk 0:00:00]}  Rf8 {[%clk 0:00:00]} 28. Bd2 {[%clk 0:00:00]}  Nxf4 {[%clk 0:00:00]} 29. Qg3 {[%clk 0:00:00]}  Bh4 {[%clk 0:00:00]} 30. Bxf4+ {[%clk 0:00:00]}  exf4 {[%clk 0:00:00]} 31. Qf3 {[%clk 0:00:00]}  Bd8 {[%clk 0:00:00]} 0-1


[Site "https://www.chess.com"]

[Event "Titled Tuesday Blitz May 2 Early 2023"]
[White "Kiseljova, Marya"]
[Black "Rottenwohrer Suarez, Juan"]
[WhiteFideId "4155009"]
[BlackFideId "32068182"]
[WhiteElo "1851"]
[BlackElo "2174"]
[Result "1-0"]
[Round "10"]
[TimeControl "180+2"]
[Date "2023.05.03"]
[WhiteClock "0:00:00"]
[BlackClock "0:00:00"]

1. d4 {[%clk 0:00:01]}  Nf6 {[%clk 0:00:01]} 2. c4 {[%clk 0:00:01]}  g6 {[%clk 0:00:01]} 3. Nc3 {[%clk 0:00:01]}  Bg7 {[%clk 0:00:01]} 4. e4 {[%clk 0:00:01]}  d6 {[%clk 0:00:01]} 5. Be2 {[%clk 0:00:01]}  O-O {[%clk 0:00:01]} 6. Nf3 {[%clk 0:00:01]}  c5 {[%clk 0:00:01]} 7. d5 {[%clk 0:00:01]}  e6 {[%clk 0:00:01]} 8. Be3 {[%clk 0:00:01]}  exd5 {[%clk 0:00:01]} 9. exd5 {[%clk 0:00:01]}  Bg4 {[%clk 0:00:01]} 10. O-O {[%clk 0:00:01]}  a6 {[%clk 0:00:01]} 11. a4 {[%clk 0:00:01]}  Nbd7 {[%clk 0:00:01]} 12. Bf4 {[%clk 0:00:01]}  Qc7 {[%clk 0:00:01]} 13. Re1 {[%clk 0:00:01]}  Rfe8 {[%clk 0:00:01]} 14. Qc2 {[%clk 0:00:01]}  Bf5 {[%clk 0:00:01]} 15. Qd2 {[%clk 0:00:01]}  Ne4 {[%clk 0:00:01]} 16. Nxe4 {[%clk 0:00:01]}  Rxe4 {[%clk 0:00:01]} 17. Ng5 {[%clk 0:00:01]}  Ree8 {[%clk 0:00:01]} 18. g4 {[%clk 0:00:00]}  h6 {[%clk 0:00:00]} 19. Nh3 {[%clk 0:00:00]}  g5 {[%clk 0:00:00]} 20. gxf5 {[%clk 0:00:00]}  gxf4 {[%clk 0:00:00]} 21. Nxf4 {[%clk 0:00:00]}  Nf6 {[%clk 0:00:00]} 22. Bf3 {[%clk 0:00:00]}  Qd7 {[%clk 0:00:00]} 23. Qd3 {[%clk 0:00:00]}  Kh8 {[%clk 0:00:00]} 24. Kh1 {[%clk 0:00:00]}  Rxe1+ {[%clk 0:00:00]} 25. Rxe1 {[%clk 0:00:00]}  Qxa4 {[%clk 0:00:00]} 26. Re7 {[%clk 0:00:00]}  Qa1+ {[%clk 0:00:00]} 27. Bd1 {[%clk 0:00:00]}  Qxb2 {[%clk 0:00:00]} 28. Rxf7 {[%clk 0:00:00]}  a5 {[%clk 0:00:00]} 29. Ne6 {[%clk 0:00:00]}  Rg8 {[%clk 0:00:00]} 30. Qg3 {[%clk 0:00:00]}  Qd2 {[%clk 0:00:00]} 31. Rxg7 {[%clk 0:00:00]}  Qxd1+ {[%clk 0:00:00]} 32. Kg2 {[%clk 0:00:00]}  Ng4 {[%clk 0:00:00]} 33. Rxg8+ {[%clk 0:00:00]} 1-0


[Site "https://www.chess.com"]

[Event "Titled Tuesday Blitz May 2 Early 2023"]
[White "Koridze, Lile"]
[Black "Torres Dominguez, David"]
[WhiteFideId "13612514"]
[BlackFideId "2220857"]
[WhiteElo "2047"]
[BlackElo "1999"]
[Result "1-0"]
[Round "10"]
[TimeControl "180+2"]
[Date "2023.05.03"]
[WhiteClock "0:00:00"]
[BlackClock "0:00:00"]

1. d4 {[%clk 0:00:01]}  e5 {[%clk 0:00:01]} 2. dxe5 {[%clk 0:00:01]}  d6 {[%clk 0:00:01]} 3. exd6 {[%clk 0:00:01]}  Bxd6 {[%clk 0:00:01]} 4. e4 {[%clk 0:00:01]}  Qe7 {[%clk 0:00:01]} 5. Bd3 {[%clk 0:00:01]}  Nc6 {[%clk 0:00:01]} 6. Nf3 {[%clk 0:00:01]}  Bg4 {[%clk 0:00:01]} 7. O-O {[%clk 0:00:01]}  O-O-O {[%clk 0:00:01]} 8. Qe2 {[%clk 0:00:01]}  Nd4 {[%clk 0:00:01]} 9. Qe3 {[%clk 0:00:01]}  Nxf3+ {[%clk 0:00:01]} 10. gxf3 {[%clk 0:00:01]}  Bh3 {[%clk 0:00:01]} 11. Re1 {[%clk 0:00:01]}  Nf6 {[%clk 0:00:01]} 12. e5 {[%clk 0:00:01]}  Nd5 {[%clk 0:00:01]} 13. exd6 {[%clk 0:00:01]}  Qf6 {[%clk 0:00:01]} 14. Qg5 {[%clk 0:00:01]}  Qxd6 {[%clk 0:00:01]} 15. Qg3 {[%clk 0:00:01]}  Qd7 {[%clk 0:00:01]} 16. Bf1 {[%clk 0:00:01]}  Bf5 {[%clk 0:00:01]} 17. c3 {[%clk 0:00:01]}  h5 {[%clk 0:00:01]} 18. h4 {[%clk 0:00:01]}  g5 {[%clk 0:00:01]} 19. hxg5 {[%clk 0:00:01]}  h4 {[%clk 0:00:01]} 20. Qh2 {[%clk 0:00:01]}  Rhg8 {[%clk 0:00:01]} 21. Kh1 {[%clk 0:00:01]}  Qc6 {[%clk 0:00:00]} 22. Bh3 {[%clk 0:00:00]}  Ne7 {[%clk 0:00:00]} 23. Nd2 {[%clk 0:00:00]}  Kb8 {[%clk 0:00:00]} 24. Ne4 {[%clk 0:00:00]}  Bxh3 {[%clk 0:00:00]} 25. Qxh3 {[%clk 0:00:00]}  f5 {[%clk 0:00:00]} 26. gxf6 {[%clk 0:00:00]}  Nf5 {[%clk 0:00:00]} 27. Qxf5 {[%clk 0:00:00]}  h3 {[%clk 0:00:00]} 28. Bg5 {[%clk 0:00:00]}  h2 {[%clk 0:00:00]} 29. f7 {[%clk 0:00:00]}  Rh8 {[%clk 0:00:00]} 30. Bxd8 {[%clk 0:00:00]} 1-0


[Site "https://www.chess.com"]

[Event "Titled Tuesday Blitz May 2 Early 2023"]
[White "Arat, Ufuk Sezen"]
[Black "Amitpal, Singh"]
[WhiteFideId "6309089"]
[BlackFideId "5012899"]
[WhiteElo "2289"]
[BlackElo "2107"]
[Result "1-0"]
[Round "10"]
[TimeControl "180+2"]
[Date "2023.05.03"]
[WhiteClock "0:00:00"]
[BlackClock "0:00:00"]

1. e4 {[%clk 0:00:01]}  c5 {[%clk 0:00:01]} 2. Nf3 {[%clk 0:00:01]}  d6 {[%clk 0:00:01]} 3. d4 {[%clk 0:00:01]}  cxd4 {[%clk 0:00:01]} 4. Nxd4 {[%clk 0:00:01]}  Nf6 {[%clk 0:00:01]} 5. Nc3 {[%clk 0:00:01]}  a6 {[%clk 0:00:01]} 6. Be3 {[%clk 0:00:01]}  e5 {[%clk 0:00:01]} 7. Nf3 {[%clk 0:00:01]}  Be6 {[%clk 0:00:01]} 8. h3 {[%clk 0:00:01]}  Be7 {[%clk 0:00:01]} 9. a4 {[%clk 0:00:01]}  Nc6 {[%clk 0:00:01]} 10. Qd2 {[%clk 0:00:01]}  Nb4 {[%clk 0:00:01]} 11. Bd3 {[%clk 0:00:01]}  d5 {[%clk 0:00:01]} 12. exd5 {[%clk 0:00:01]}  Nbxd5 {[%clk 0:00:01]} 13. Nxd5 {[%clk 0:00:01]}  Nxd5 {[%clk 0:00:01]} 14. O-O {[%clk 0:00:01]}  Qc7 {[%clk 0:00:01]} 15. Rfe1 {[%clk 0:00:01]}  O-O {[%clk 0:00:01]} 16. Qe2 {[%clk 0:00:01]}  f5 {[%clk 0:00:01]} 17. c4 {[%clk 0:00:01]}  Nxe3 {[%clk 0:00:01]} 18. Qxe3 {[%clk 0:00:01]}  e4 {[%clk 0:00:01]} 19. Bxe4 {[%clk 0:00:01]}  fxe4 {[%clk 0:00:01]} 20. Qxe4 {[%clk 0:00:01]}  Rf6 {[%clk 0:00:01]} 21. Ng5 {[%clk 0:00:01]}  Bc5 {[%clk 0:00:00]} 22. Qxh7+ {[%clk 0:00:01]}  Kf8 {[%clk 0:00:00]} 23. Nxe6+ {[%clk 0:00:01]}  Rxe6 {[%clk 0:00:00]} 24. Rxe6 {[%clk 0:00:01]}  Kf7 {[%clk 0:00:00]} 25. Rae1 {[%clk 0:00:00]}  Rd8 {[%clk 0:00:00]} 26. Qh5+ {[%clk 0:00:00]}  Kg8 {[%clk 0:00:00]} 27. Re8+ {[%clk 0:00:00]}  Bf8 {[%clk 0:00:00]} 28. Rxd8 {[%clk 0:00:00]}  Qxd8 {[%clk 0:00:00]} 29. Qd5+ {[%clk 0:00:00]}  Qxd5 {[%clk 0:00:00]} 30. cxd5 {[%clk 0:00:00]}  Kf7 {[%clk 0:00:00]} 31. Rc1 {[%clk 0:00:00]}  Bd6 {[%clk 0:00:00]} 32. h4 {[%clk 0:00:00]}  Kf6 {[%clk 0:00:00]} 33. Re1 {[%clk 0:00:00]} 1-0


[Site "https://www.chess.com"]